[Event "*** Titled Tuesday 3|2 Blitz (Late)"]
[Site "Chess.com"]
[Date "2016.12.06"]
[Round "9"]
[White "nonsopolo1"]
[Black "nonscitis"]
[Result "0-1"]
[WhiteElo "2186"]
[BlackElo "2368"]
[TimeControl "180+2"]
[EndTime "18:54:03 PST"]
[Termination "nonscitis won by resignation"]

1. e4 {[%clk 0:03:02]} 1... c5 {[%clk 0:03:00.2]} 2. Nf3 {[%clk 0:03:02.2]} 2...
d6 {[%clk 0:02:56.1]} 3. d4 {[%clk 0:03:02.7]} 3... cxd4 {[%clk 0:02:57.1]} 4.
Nxd4 {[%clk 0:03:03.2]} 4... Nf6 {[%clk 0:02:57.9]} 5. Nc3 {[%clk 0:03:04.1]}
5... a6 {[%clk 0:02:58]} 6. Bg5 {[%clk 0:03:03.1]} 6... Nbd7 {[%clk 0:02:56.6]}
7. f4 {[%clk 0:03:03.5]} 7... Qc7 {[%clk 0:02:56.3]} 8. Qf3 {[%clk 0:03:03.6]}
8... h6 {[%clk 0:02:56.4]} 9. Bh4 {[%clk 0:03:01.5]} 9... g5 {[%clk 0:02:57.1]}
10. fxg5 {[%clk 0:03:00.2]} 10... hxg5 {[%clk 0:02:55.7]} 11. Bxg5 {[%clk
0:02:59.5]} 11... Qc5 {[%clk 0:02:55.9]} 12. Be3 {[%clk 0:02:55]} 12... Ne5
{[%clk 0:02:55.1]} 13. Qg3 {[%clk 0:02:53.2]} 13... Nfg4 {[%clk 0:02:43.6]} 14.
Nf5 {[%clk 0:02:40.4]} 14... Nxe3 {[%clk 0:02:30.2]} 15. Qxe3 {[%clk 0:02:39.6]}
15... Qb4 {[%clk 0:02:29.9]} 16. Rb1 {[%clk 0:02:23.1]} 16... Bxf5 {[%clk
0:02:15.4]} 17. exf5 {[%clk 0:02:22]} 17... Bh6 {[%clk 0:02:16.6]} 18. Qe4
{[%clk 0:02:18]} 18... Qb6 {[%clk 0:01:59.2]} 19. Nd5 {[%clk 0:02:13.8]} 19...
Qd8 {[%clk 0:01:56.7]} 20. Be2 {[%clk 0:02:04.6]} 20... Rc8 {[%clk 0:01:52.4]}
21. O-O {[%clk 0:02:00]} 21... Rg8 {[%clk 0:01:49.8]} 22. f6 {[%clk 0:01:54.8]}
22... e6 {[%clk 0:01:45.6]} 23. Ne7 {[%clk 0:01:38.4]} 23... Rh8 {[%clk
0:01:34.9]} 24. Nxc8 {[%clk 0:01:35.6]} 24... Qxc8 {[%clk 0:01:35.5]} 25. Rbd1
{[%clk 0:01:32.7]} 25... Qc5+ {[%clk 0:01:32.3]} 26. Kh1 {[%clk 0:01:29.8]}
26... Nc6 {[%clk 0:01:21.7]} 27. c3 {[%clk 0:01:27.7]} 27... d5 {[%clk
0:01:19.3]} 28. Qh4 {[%clk 0:01:22.8]} 28... Ne5 {[%clk 0:01:16.3]} 29. Qh5
{[%clk 0:01:20.3]} 29... Ng6 {[%clk 0:01:11.2]} 30. Bd3 {[%clk 0:01:16]} 30...
Bf4 {[%clk 0:01:09.4]} 31. Bxg6 {[%clk 0:01:11.2]} 31... Rxh5 {[%clk 0:01:08.7]}
32. Bxh5 {[%clk 0:01:12]} 32... Qc7 {[%clk 0:01:02.8]} 33. g3 {[%clk 0:01:07.1]}
33... Be5 {[%clk 0:00:59.2]} 34. Rde1 {[%clk 0:01:04.5]} 34... Kf8 {[%clk
0:00:57.9]} 35. Kg2 {[%clk 0:01:03.3]} 35... b5 {[%clk 0:00:56.1]} 36. Re2
{[%clk 0:01:01.6]} 36... Bd6 {[%clk 0:00:53.6]} 37. Rff2 {[%clk 0:00:58.1]}
37... Qc4 {[%clk 0:00:53.7]} 38. a3 {[%clk 0:00:56.7]} 38... Qd3 {[%clk
0:00:52.6]} 39. Bf3 {[%clk 0:00:56.4]} 39... Bc5 {[%clk 0:00:51.1]} 40. Rf1
{[%clk 0:00:56.3]} 40... Qg6 {[%clk 0:00:49.8]} 41. h4 {[%clk 0:00:54.1]} 41...
Bd6 {[%clk 0:00:50.3]} 42. g4 {[%clk 0:00:53.8]} 42... Qh6 {[%clk 0:00:51]} 43.
Kh3 {[%clk 0:00:53.6]} 43... Qf4 {[%clk 0:00:50.5]} 44. Rg2 {[%clk 0:00:51.4]}
44... Qxf6 {[%clk 0:00:46.5]} 45. Be2 {[%clk 0:00:43.3]} 45... Qe5 {[%clk
0:00:41.5]} 46. h5 {[%clk 0:00:38.1]} 46... Qe3+ {[%clk 0:00:37.3]} 47. Rf3
{[%clk 0:00:37.1]} 47... Qc1 {[%clk 0:00:37.2]} 48. Bf1 {[%clk 0:00:35.6]} 48...
Kg7 {[%clk 0:00:34.5]} 49. Rgf2 {[%clk 0:00:31.5]} 49... f5 {[%clk 0:00:20]} 50.
g5 {[%clk 0:00:31.9]} 50... Kh8 {[%clk 0:00:16.7]} 51. Rg2 {[%clk 0:00:31.6]}
51... Qd1 {[%clk 0:00:13.8]} 52. Rgf2 {[%clk 0:00:24.3]} 52... Bc5 {[%clk
0:00:13.2]} 53. Re2 {[%clk 0:00:23.6]} 53... Qc1 {[%clk 0:00:11.8]} 54. Kh4
{[%clk 0:00:22.1]} 54... Be7 {[%clk 0:00:10.9]} 55. Rg2 {[%clk 0:00:22.2]} 55...
f4 {[%clk 0:00:08.7]} 56. h6 {[%clk 0:00:22]} 56... Qe1+ {[%clk 0:00:09.2]} 57.
Kh5 {[%clk 0:00:22.6]} 57... Qe5 {[%clk 0:00:09.2]} 58. Bd3 {[%clk 0:00:21.6]}
58... Qe1 {[%clk 0:00:09]} 59. Kg6 {[%clk 0:00:22.1]} 59... Qe5 {[%clk 0:00:08]}
60. Kh5 {[%clk 0:00:22.8]} 60... Qe1 {[%clk 0:00:08]} 61. Rxf4 {[%clk
0:00:23.1]} 61... Qh1+ {[%clk 0:00:08.3]} 62. Kg6 {[%clk 0:00:22]} 62... Qxg2
{[%clk 0:00:09.4]} 63. Kf7 {[%clk 0:00:17.7]} 63... Qxg5 {[%clk 0:00:10]} 64.
Rf2 {[%clk 0:00:17.9]} 64... e5 {[%clk 0:00:10]} 65. Ke6 {[%clk 0:00:17.2]}
65... e4 {[%clk 0:00:10.7]} 66. Bc2 {[%clk 0:00:17.9]} 66... e3 {[%clk 0:00:07]}
67. Re2 {[%clk 0:00:18.9]} 67... Qg4+ {[%clk 0:00:07]} 68. Kxe7 {[%clk
0:00:20.1]} 68... Qxe2 {[%clk 0:00:08.9]} 69. Bg6 {[%clk 0:00:20.8]} 69... Qxb2
{[%clk 0:00:09.4]} 70. h7 {[%clk 0:00:21.7]} 70... Qxc3 {[%clk 0:00:10.9]} 71.
Bf7 {[%clk 0:00:22.6]} 71... Qxa3+ {[%clk 0:00:12.8]} 72. Kf6 {[%clk 0:00:17.9]}
72... e2 {[%clk 0:00:12.7]} 73. Kg6 {[%clk 0:00:08.1]} 73... e1=Q {[%clk
0:00:14.6]} 74. Kg5 {[%clk 0:00:03.5]} 74... Qae7+ {[%clk 0:00:14.9]} 0-1